bitfinex/quotes_SOLUSD_20230702
["timestamp","ask_amount","ask_price","bid_price","bid_amount"]
[1688259925051,80.379,18.811,18.794,22.506]
[1688259925228,71.8,18.81,18.77,16.8]
[1688259925544,22.502,18.798,18.784,80.493]
[1688259925919,105.644,18.809,18.784,80.493]
[1688259926329,16.93,18.82,18.784,80.493]
[1688259926528,22.493,18.806,18.785,67.31436]
[1688259926735,22.493,18.806,18.791,80.462]
[1688259927031,22.493,18.806,18.796,22.504]
[1688259927244,22.493,18.806,18.785,12.31436]
[1688259927245,128.15,18.806,18.792,22.508]
[1688259927536,219.8858,18.806,18.792,22.508]
[1688259929124,114.2288,18.806,18.792,22.508]
[1688259929929,114.2288,18.806,18.796,22.503]
[1688259930137,114.2288,18.806,18.798,22.501]
[1688259930339,22.493,18.806,18.798,22.501]
[1688259930639,22.493,18.806,18.793,55.0]
[1688259930934,22.493,18.806,18.772,20.0]
[1688259930935,20.0,18.805,18.782,57.98]
[1688259931135,80.433,18.799,18.787,22.514]
[1688259932135,22.502,18.799,18.787,22.514]
[1688259932716,22.502,18.799,18.781,57.983]
[1688259932717,22.502,18.799,18.782,22.52]
[1688259932936,22.502,18.799,18.774,105.834]
[1688259932937,55.0,18.798,18.78,22.523]
[1688259933136,80.456,18.793,18.78,22.523]
[1688259934027,80.456,18.793,18.781,20.0]
[1688259934339,80.456,18.793,18.781,42.521]
[1688259934521,80.456,18.793,18.774,163.839]
[1688259934522,80.456,18.793,18.779,22.524]
[1688259934731,20.0,18.792,18.777,22.526]
[1688259934939,80.478,18.788,18.766,105.878]
[1688259935148,80.478,18.788,18.767,20.0]
[1688259935839,94.2226,18.787,18.773,22.531]
[1688259936026,22.52,18.783,18.773,22.531]
[1688259937234,94.2226,18.787,18.773,80.539]
[1688259937433,22.517,18.786,18.773,80.539]
[1688259937638,22.517,18.786,18.773,22.531]
[1688259938435,22.517,18.786,18.766,58.027]
[1688259938642,22.517,18.786,18.763,105.894]
[1688259938643,75.0,18.785,18.763,58.039]
[1688259938942,80.517,18.779,18.764,22.542]
[1688259939830,22.525,18.779,18.764,22.542]
[1688259940448,22.525,18.779,18.765,55.0]
[1688259940754,22.525,18.779,18.766,22.54]
[1688259941033,22.525,18.779,18.767,55.0]
[1688259942838,22.525,18.779,18.767,77.538]
[1688259944148,94.2226,18.787,18.767,77.538]
[1688259944331,22.521,18.783,18.773,22.531]
[1688259944646,22.521,18.783,18.771,22.534]
[1688259944946,22.521,18.783,18.772,20.0]
[1688259945751,22.521,18.783,18.772,42.533]
[1688259946346,22.521,18.783,18.772,20.0]
[1688259946543,22.521,18.783,18.767,22.534]
[1688259946544,22.521,18.783,18.77,22.535]
[1688259946850,22.521,18.783,18.771,75.0]
[1688259947732,22.521,18.783,18.771,97.534]
[1688259949342,152.1896,18.787,18.771,203.388]
[1688259950042,57.967,18.787,18.771,203.388]
[1688259950434,22.52,18.783,18.776,22.528]
[1688259950639,22.52,18.783,18.777,77.526]
[1688259952555,22.52,18.783,18.777,55.0]
[1688259952752,22.52,18.783,18.778,22.525]
[1688259953052,22.52,18.783,18.777,55.0]
[1688259953457,22.52,18.783,18.777,77.527]
[1688259954139,57.945,18.794,18.777,77.527]
[1688259954342,20.0,18.793,18.777,88.36419922]
[1688259954661,22.513,18.789,18.782,22.52]
[1688259954856,22.513,18.789,18.783,77.519]
[1688259955164,22.513,18.789,18.783,55.0]
[1688259955858,22.513,18.789,18.776,55.0]
[1688259956046,22.513,18.789,18.775,22.528]
[1688259957548,22.513,18.789,18.773,22.531]
[1688259958059,80.495,18.784,18.773,22.531]
[1688259959057,80.495,18.784,18.769,22.531]
[1688259959258,80.495,18.784,18.77,20.0]
[1688259960062,80.495,18.784,18.771,55.0]
[1688259960265,80.495,18.784,18.772,20.0]
[1688259960464,80.495,18.784,18.769,22.531]
[1688259960465,75.0,18.783,18.769,22.531]
[1688259960779,22.525,18.779,18.77,22.535]
[1688259961760,22.523,18.78,18.771,55.0]
[1688259961946,22.522,18.782,18.773,22.531]
[1688259962145,22.522,18.782,18.774,55.0]
[1688259962347,22.522,18.782,18.776,22.528]
[1688259962548,22.522,18.782,18.772,20.0]
[1688259962759,22.522,18.782,18.773,22.532]
[1688259963061,22.522,18.782,18.774,55.0]
[1688259963279,22.522,18.782,18.772,55.0]
[1688259963961,22.522,18.782,18.772,77.532]
[1688259964460,128.314,18.782,18.768,22.537]
[1688259964665,128.314,18.782,18.768,22.538]
[1688259964842,128.314,18.782,18.762,10.83719922]
[1688259965361,128.314,18.782,18.764,10.83719922]
[1688259965567,128.314,18.782,18.766,22.539]
[1688259965958,22.522,18.782,18.767,10.83719922]
[1688259966159,22.522,18.782,18.771,22.534]
[1688259966350,22.52,18.784,18.772,75.0]
[1688259966669,16.83,18.8,18.772,75.0]
[1688259966670,57.954,18.791,18.775,22.529]
[1688259966850,22.51,18.791,18.782,22.521]
[1688259967467,22.51,18.791,18.776,10.83719922]
[1688259967668,22.51,18.791,18.777,55.0]
[1688259968671,22.51,18.791,18.776,77.528]
[1688259969465,22.51,18.791,18.781,22.522]
[1688259969661,22.51,18.791,18.782,55.0]
[1688259969848,22.509,18.793,18.784,22.518]
[1688259970049,93.5521,18.799,18.785,55.0]
[1688259970361,93.5521,18.799,18.789,22.512]
[1688259970362,22.504,18.796,18.789,22.512]
[1688259970567,22.504,18.796,18.79,77.511]
[1688259972050,22.504,18.796,18.79,55.0]
[1688259972255,22.504,18.796,18.789,55.0]
[1688259972863,22.504,18.796,18.788,77.514]
[1688259974566,22.503,18.798,18.788,88.35119922]
[1688259975067,22.5,18.8,18.789,30.83719922]
[1688259975261,22.5,18.8,18.793,22.507]
[1688259975464,22.5,18.8,18.789,20.0]
[1688259975759,22.5,18.8,18.792,22.509]
[1688259975963,22.5,18.8,18.79,55.0]
[1688259975964,22.5,18.8,18.79,22.51]
[1688259976265,22.5,18.8,18.789,20.0]
[1688259976266,22.5,18.8,18.789,22.512]
[1688259976563,22.5,18.8,18.79,55.0]
[1688259976764,22.5,18.8,18.79,77.511]
[1688259977066,22.5,18.8,18.791,10.83719922]
[1688259977269,22.5,18.8,18.792,55.0]
[1688259977471,22.5,18.8,18.792,22.509]
[1688259977949,22.5,18.8,18.795,22.505]
[1688259978556,22.5,18.8,18.796,77.504]
[1688259979660,22.5,18.8,18.796,22.504]
[1688259980465,90.7038,18.805,18.796,22.504]
[1688259980650,95.5763,18.811,18.797,55.0]
[1688259980851,22.494,18.805,18.798,22.501]
[1688259981056,22.494,18.805,18.799,55.0]
[1688259981762,22.494,18.805,18.799,77.501]
[1688259982772,22.494,18.805,18.799,55.0]
[1688259982966,22.494,18.805,18.798,55.0]
[1688259983170,80.404,18.805,18.798,55.0]
[1688259983668,80.404,18.805,18.797,77.503]
[1688259983867,22.494,18.805,18.798,22.501]
[1688259984054,22.494,18.805,18.799,55.0]
[1688259984872,22.493,18.806,18.799,77.5]
[1688259985083,95.5763,18.811,18.799,77.5]
[1688259985084,22.491,18.808,18.799,77.5]
[1688259988375,22.491,18.808,18.8,20.0]
[1688259988559,22.491,18.808,18.803,22.496]
[1688259988757,22.491,18.808,18.778,3.0]
[1688259988963,22.491,18.808,18.797,22.502]
[1688259989860,22.491,18.808,18.793,22.502]
[1688259990169,128.137,18.808,18.794,55.0]
[1688259990373,22.491,18.808,18.798,22.502]
[1688259990571,22.491,18.808,18.799,55.0]
[1688259990979,22.491,18.808,18.799,88.33719922]
[1688259991171,22.489,18.81,18.799,88.33719922]
[1688260000085,22.489,18.81,18.8,20.0]
[1688260000284,22.489,18.81,18.803,22.496]
[1688260000591,22.489,18.81,18.804,55.0]
[1688260000800,22.489,18.81,18.805,22.493]
[1688260001088,22.489,18.81,18.801,22.498]
[1688260001277,22.489,18.81,18.795,57.94]
[1688260002580,22.489,18.81,18.796,55.0]
[1688260002779,22.489,18.81,18.799,22.5]
[1688260003091,22.489,18.81,18.8,55.0]
[1688260010396,22.489,18.81,18.801,20.0]
[1688260010600,22.489,18.81,18.802,77.497]
[1688260010781,92.2013,18.816,18.802,77.497]
[1688260010976,92.2013,18.816,18.796,105.709]
[1688260010977,22.488,18.81,18.8,22.498]
[1688260011301,22.488,18.81,18.801,75.0]
[1688260011998,22.488,18.81,18.784,105.777]
[1688260012189,22.488,18.81,18.785,20.0]
[1688260012387,22.488,18.81,18.79,10.83719922]
[1688260012780,22.488,18.81,18.794,22.506]
[1688260013201,22.488,18.81,18.794,33.34319922]
[1688260013388,22.488,18.81,18.799,22.5]
[1688260013608,22.488,18.81,18.8,55.0]
[1688260013787,22.488,18.81,18.8,77.499]
[1688260014895,22.488,18.81,18.798,22.502]
[1688260017202,22.488,18.81,18.796,22.504]
[1688260017390,22.488,18.81,18.797,55.0]
[1688260017800,22.488,18.81,18.797,77.503]
[1688260018410,22.488,18.81,18.797,88.34019922]
[1688260022197,22.488,18.81,18.801,22.498]
[1688260022999,22.488,18.81,18.803,22.496]
[1688260023390,21.988,18.81,18.803,22.496]
[1688260023593,21.988,18.81,18.802,55.0]
[1688260023901,21.988,18.81,18.802,77.497]
[1688260024109,92.2013,18.816,18.802,77.497]
[1688260024320,22.486,18.812,18.802,77.497]
[1688260024613,26.67155479,18.822,18.802,88.33419922]
[1688260024800,57.857,18.823,18.802,88.33419922]
[1688260024801,22.478,18.818,18.803,10.83719922]
[1688260025001,22.478,18.818,18.808,22.49]
[1688260025310,22.478,18.818,18.81,22.487]
[1688260025610,22.478,18.818,18.811,55.0]
[1688260026213,22.474,18.822,18.812,20.0]
[1688260026396,396.8,18.83,18.813,77.483]
[1688260026397,97.0589,18.829,18.813,77.483]
[1688260026714,22.472,18.823,18.813,77.483]
[1688260027015,22.472,18.823,18.814,55.0]
[1688260027211,22.472,18.823,18.816,22.48]
[1688260027411,22.472,18.823,18.817,55.0]
[1688260027994,22.472,18.823,18.812,55.0]
[1688260028207,22.472,18.823,18.812,77.485]
[1688260028511,22.472,18.823,18.812,22.485]
[1688260029314,22.472,18.823,18.813,55.0]
[1688260029607,22.472,18.823,18.811,22.485]
[1688260029791,22.472,18.823,18.808,26.14120532]
[1688260029792,22.478,18.818,18.809,22.488]
[1688260031198,105.554,18.825,18.809,33.32519922]
[1688260031199,22.477,18.82,18.809,33.32519922]
[1688260031412,22.477,18.82,18.81,30.83719922]
[1688260031619,22.477,18.82,18.813,22.484]
[1688260031915,22.477,18.82,18.815,22.481]
[1688260035047,22.477,18.82,18.809,57.851]
[1688260035315,22.477,18.82,18.797,57.934]
[1688260035316,55.977,18.82,18.797,57.934]
[1688260035523,55.977,18.82,18.794,57.942]
[1688260035524,80.377,18.811,18.794,57.942]
[1688260035701,80.377,18.811,18.799,22.5]
[1688260036014,22.491,18.807,18.794,10.83719922]
[1688260036314,22.491,18.807,18.799,22.501]
[1688260037000,22.491,18.807,18.8,55.0]
[1688260037200,22.491,18.807,18.801,22.498]
[1688260041003,22.491,18.807,18.796,22.498]
[1688260041201,22.491,18.807,18.786,57.967]
[1688260041413,22.491,18.807,18.791,30.83719922]
[1688260041917,22.491,18.807,18.792,22.509]
[1688260042423,22.491,18.807,18.797,22.503]
[1688260042622,22.491,18.807,18.798,55.0]
[1688260042821,22.491,18.807,18.8,22.499]
[1688260043125,22.491,18.807,18.801,55.0]
[1688260043704,22.491,18.807,18.802,22.497]
[1688260043902,22.491,18.807,18.801,55.0]
[1688260046607,22.491,18.807,18.797,10.83719922]
[1688260046808,22.491,18.807,18.791,20.0]
[1688260047011,22.491,18.807,18.793,10.83719922]
[1688260047204,22.491,18.807,18.794,55.0]
[1688260047613,22.491,18.807,18.794,10.83719922]
[1688260047827,22.491,18.807,18.795,22.504]
[1688260049128,22.491,18.807,18.796,55.0]
[1688260049323,22.491,18.807,18.796,77.503]
[1688260049626,22.491,18.807,18.794,10.83719922]
[1688260049931,22.491,18.807,18.792,22.508]
[1688260051530,22.491,18.807,18.793,55.0]
[1688260051732,22.491,18.807,18.797,22.503]
[1688260051911,22.491,18.807,18.798,55.0]
[1688260052122,22.491,18.807,18.798,77.501]
[1688260053012,22.491,18.807,18.791,42.508]
[1688260053219,22.491,18.807,18.792,55.0]
[1688260053525,22.491,18.807,18.792,65.83719922]
[1688260053735,22.491,18.807,18.792,10.83719922]
[1688260054027,80.43,18.799,18.782,57.98]
[1688260054224,80.43,18.799,18.78,33.66]
[1688260054225,80.43,18.799,18.785,22.516]
[1688260054437,22.507,18.795,18.785,22.516]
[1688260055131,22.507,18.795,18.785,33.35319922]
[1688260055336,90.9309,18.798,18.786,10.83719922]
[1688260055513,57.918,18.803,18.789,22.512]
[1688260055713,22.5,18.8,18.789,22.512]
[1688260055913,93.4303,18.805,18.789,22.512]
[1688260055914,22.498,18.802,18.79,119.29719922]
[1688260056133,22.498,18.802,18.793,22.507]
[1688260056321,93.4303,18.805,18.794,55.0]
[1688260056522,22.497,18.802,18.797,22.503]
[1688260056925,22.497,18.802,18.798,55.0]
[1688260057125,22.497,18.802,18.798,77.501]
[1688260057619,22.493,18.806,18.798,77.501]
[1688260057820,834.52,18.83,18.8,33.49]
[1688260057821,666.25,18.83,18.8,33.49]
[1688260058015,22.486,18.812,18.806,22.492]
[1688260058937,22.486,18.812,18.804,22.494]
[1688260059230,22.486,18.812,18.805,55.0]
[1688260059618,22.486,18.812,18.8,22.499]
[1688260059829,22.486,18.812,18.801,20.0]
[1688260060335,22.486,18.812,18.801,42.498]
[1688260060519,22.486,18.812,18.802,77.497]
[1688260062221,22.486,18.812,18.802,22.497]
[1688260067836,22.486,18.812,18.803,55.0]
[1688260068018,163.466,18.818,18.803,55.0]
[1688260068019,22.485,18.813,18.805,22.493]
[1688260068220,22.485,18.813,18.806,55.0]
[1688260068421,22.485,18.813,18.808,22.49]
[1688260068826,93.4303,18.819,18.808,22.49]
[1688260069023,22.477,18.82,18.809,55.0]
[1688260069238,61.22470859,18.84,18.809,55.0]
[1688260069239,92.664,18.829,18.812,80.372]
[1688260069418,92.664,18.829,18.813,55.0]
[1688260069623,22.469,18.826,18.817,22.478]
[1688260069841,22.469,18.826,18.818,55.0]
[1688260070029,22.469,18.826,18.819,22.476]
[1688260070326,22.469,18.826,18.821,22.474]
[1688260070639,22.469,18.826,18.822,55.0]
[1688260071224,60.87170182,18.84,18.822,77.473]
[1688260071225,22.466,18.828,18.822,77.473]
[1688260071427,22.462,18.832,18.822,77.473]
[1688260071736,94.3838,18.839,18.822,88.31019922]
[1688260071943,94.3838,18.839,18.823,10.83719922]
[1688260071944,22.459,18.835,18.823,10.83719922]
[1688260072147,22.459,18.835,18.826,22.468]
[1688260072636,22.459,18.835,18.829,22.464]
[1688260073028,22.459,18.835,18.831,22.462]
[1688260073225,57.787,18.846,18.832,77.46]
[1688260073545,57.784,18.846,18.833,55.0]
[1688260073726,396.8,18.857,18.836,22.456]
[1688260073926,396.8,18.857,18.837,55.0]
[1688260073927,57.773,18.85,18.837,55.0]
[1688260074124,22.444,18.847,18.84,22.451]
[1688260074323,22.442,18.849,18.841,55.0]
[1688260074637,22.442,18.849,18.843,22.448]
[1688260074836,94.3838,18.856,18.841,55.0]
[1688260074837,22.439,18.851,18.845,22.445]
[1688260075038,152.1378,18.856,18.841,112.799]
[1688260075039,22.441,18.849,18.841,55.0]
[1688260075230,22.441,18.849,18.842,42.449]
[1688260075548,22.441,18.849,18.843,55.0]
[1688260075742,22.441,18.849,18.843,77.448]
[1688260076340,22.441,18.849,18.839,22.453]
[1688260076543,22.441,18.849,18.842,22.449]
[1688260076729,22.439,18.851,18.842,22.449]
[1688260076930,22.439,18.851,18.833,10.83719922]
[1688260077134,80.207,18.851,18.84,22.451]
[1688260077530,80.207,18.851,18.841,55.0]
[1688260077730,80.207,18.851,18.838,22.453]
[1688260078128,80.207,18.851,18.834,22.458]
[1688260079432,80.207,18.851,18.835,55.0]
[1688260079637,80.207,18.851,18.837,22.455]
[1688260079842,80.207,18.851,18.838,55.0]
[1688260080146,22.439,18.851,18.841,22.449]
[1688260080349,22.439,18.851,18.844,22.446]
[1688260080550,22.439,18.851,18.845,55.0]
[1688260081335,22.439,18.851,18.836,55.0]
[1688260081540,22.439,18.851,18.837,22.454]
[1688260082937,22.439,18.851,18.834,22.454]
[1688260083434,22.439,18.851,18.834,33.29119922]
[1688260083629,22.439,18.851,18.835,33.29419922]
[1688260083850,22.439,18.851,18.836,55.0]
[1688260084044,22.439,18.851,18.838,22.453]
[1688260084234,22.439,18.851,18.839,55.0]
[1688260084433,22.439,18.851,18.839,22.452]
[1688260084635,22.439,18.851,18.84,55.0]
[1688260084843,22.439,18.851,18.841,22.45]
[1688260085043,22.439,18.851,18.842,55.0]
[1688260085449,22.439,18.851,18.841,77.45]
[1688260085645,22.439,18.851,18.841,55.0]
[1688260086937,22.439,18.851,18.841,77.45]
[1688260087545,22.439,18.851,18.838,22.454]
[1688260087955,22.439,18.851,18.834,22.454]
[1688260088556,22.439,18.851,18.835,10.83719922]
[1688260089640,22.439,18.851,18.836,22.456]
[1688260090050,22.439,18.851,18.837,10.83719922]
[1688260090253,22.439,18.851,18.84,22.451]
[1688260090554,22.439,18.851,18.841,55.0]
[1688260092856,22.439,18.851,18.838,22.454]
[1688260094053,22.439,18.851,18.839,55.0]
[1688260095460,22.439,18.851,18.839,77.453]
[1688260097749,22.439,18.851,18.834,22.454]
[1688260098445,22.439,18.851,18.834,33.29119922]
[1688260098852,22.439,18.851,18.835,22.457]
[1688260099563,22.439,18.851,18.835,33.29419922]
[1688260099858,22.439,18.851,18.835,22.457]
[1688260100250,22.439,18.851,18.835,33.29419922]
[1688260101041,22.439,18.851,18.836,55.0]
[1688260101744,22.439,18.851,18.835,77.457]
[1688260102144,22.439,18.851,18.833,26.43059457]
[1688260102345,22.439,18.851,18.833,48.88959457]
[1688260102546,22.439,18.851,18.833,22.459]
[1688260103056,22.439,18.851,18.833,33.29619922]
[1688260103364,22.439,18.851,18.834,10.83719922]
[1688260103558,22.439,18.851,18.836,22.456]
[1688260103862,22.439,18.851,18.837,55.0]
[1688260104041,22.439,18.851,18.837,77.455]
[1688260104558,22.439,18.851,18.838,10.83719922]
[1688260104757,22.439,18.851,18.839,77.452]
[1688260105063,22.439,18.851,18.837,22.454]
[1688260106167,22.439,18.851,18.835,22.457]
[1688260106664,22.439,18.851,18.836,55.0]
[1688260107140,22.439,18.851,18.836,77.456]
[1688260113561,22.439,18.851,18.836,135.27]
[1688260113866,22.439,18.851,18.841,22.45]
[1688260114172,22.439,18.851,18.842,77.448]
[1688260114961,22.439,18.851,18.837,10.83719922]
[1688260116964,22.439,18.851,18.838,77.453]
[1688260117770,22.439,18.851,18.838,88.29019922]
[1688260120761,22.439,18.851,18.838,77.453]
[1688260121163,22.439,18.851,18.838,88.29019922]
[1688260123870,22.437,18.853,18.84,16.77]
[1688260124085,26.8862517,18.859,18.843,80.237]
[1688260124279,26.8862517,18.859,18.844,55.0]
[1688260124576,22.43,18.859,18.848,22.442]
[1688260124774,22.43,18.859,18.851,22.438]
[1688260124978,22.43,18.859,18.852,55.0]
[1688260125476,22.43,18.859,18.849,22.44]
[1688260125772,22.43,18.859,18.85,55.0]
[1688260126679,22.43,18.859,18.85,77.439]
[1688260128571,22.43,18.859,18.848,57.743]
[1688260128767,22.43,18.859,18.846,22.444]
[1688260128968,22.43,18.859,18.844,22.446]
[1688260129374,22.43,18.859,18.845,10.83719922]
[1688260129577,22.43,18.859,18.848,22.442]
[1688260130078,22.43,18.859,18.849,55.0]
[1688260130577,22.43,18.859,18.844,57.743]
[1688260130975,22.43,18.859,18.841,10.83719922]
[1688260131173,22.43,18.859,18.838,26.61119398]
[1688260131486,22.43,18.859,18.84,10.83719922]
[1688260131977,22.43,18.859,18.84,33.28819922]
[1688260132568,22.43,18.859,18.841,55.0]
[1688260132865,30.03339541,18.859,18.841,77.45]
[1688260133061,7.60339541,18.858,18.839,26.611194]
[1688260133268,185.599,18.853,18.827,105.537]
[1688260133565,7.60339541,18.852,18.833,22.43]
[1688260133773,185.658,18.847,18.833,22.43]
[1688260133971,185.658,18.847,18.831,22.462]
[1688260134672,185.658,18.847,18.831,80.301]
[1688260135861,185.658,18.847,18.832,55.0]
[1688260136081,193.26139541,18.847,18.826,26.06366347]
[1688260136278,193.26139541,18.847,18.822,57.855]
[1688260136279,27.60339541,18.846,18.822,57.855]
[1688260136487,80.259,18.839,18.826,22.468]
[1688260136688,80.259,18.839,18.826,81.757091]
[1688260138262,80.259,18.839,18.826,22.468]
[1688260140385,80.259,18.839,18.825,22.47]
[1688260140969,80.259,18.839,18.826,55.0]
[1688260141265,80.259,18.839,18.827,22.467]
[1688260141466,80.259,18.839,18.828,55.0]
[1688260143086,80.259,18.839,18.827,55.0]
[1688260143482,80.259,18.839,18.827,77.467]
[1688260146893,22.453,18.839,18.828,20.0]
[1688260147199,22.453,18.839,18.831,22.462]
[1688260147496,22.453,18.839,18.832,77.461]
[1688260150195,21.953,18.839,18.832,77.461]
[1688260150689,21.953,18.839,18.828,20.0]
[1688260150985,21.953,18.839,18.824,68.697199]
[1688260151492,21.953,18.839,18.827,22.466]
[1688260153185,21.953,18.839,18.828,55.0]
[1688260156697,21.953,18.839,18.828,77.466]
[1688260157595,21.953,18.839,18.828,88.30319922]
[1688260159486,21.953,18.839,18.828,65.83719922]
[1688260161083,21.953,18.839,18.823,77.466]
[1688260161384,21.953,18.839,18.822,22.472]
[1688260161699,21.953,18.839,18.822,33.30919922]
[1688260161888,80.283,18.834,18.822,33.30919922]
[1688260162088,80.283,18.834,18.823,33.30919922]
[1688260163904,80.283,18.834,18.824,55.0]
[1688260164304,80.283,18.834,18.824,77.471]
[1688260171705,80.283,18.834,18.822,22.473]
[1688260171885,80.283,18.834,18.82,22.474]
[1688260172086,80.283,18.834,18.821,42.474]
[1688260173110,22.46,18.834,18.821,42.474]
[1688260174100,22.46,18.834,18.825,22.469]
[1688260174406,22.46,18.834,18.826,55.0]
[1688260175604,22.46,18.834,18.826,77.468]
[1688260176202,22.46,18.834,18.826,22.468]
[1688260176504,22.46,18.834,18.821,20.0]
[1688260176706,22.46,18.834,18.824,22.471]
[1688260177208,96.9854,18.838,18.824,80.322]
[1688260177510,96.9854,18.838,18.825,55.0]
[1688260177692,96.9854,18.838,18.827,22.466]
[1688260177693,22.459,18.834,18.827,22.466]
[1688260177888,22.459,18.834,18.825,55.0]
[1688260178196,22.459,18.834,18.82,77.861]
[1688260178507,22.459,18.834,18.823,22.471]
[1688260179505,22.459,18.834,18.824,55.0]
[1688260179694,22.459,18.834,18.824,77.471]
[1688260180806,22.459,18.834,18.824,55.0]
[1688260181399,22.459,18.834,18.824,22.47]
[1688260182113,22.459,18.834,18.822,22.472]
[1688260182610,22.459,18.834,18.818,55.0]
[1688260182916,22.459,18.834,18.813,27.06840278]
[1688260182917,33.56,18.83,18.813,27.06840278]
[1688260183103,22.47,18.825,18.815,22.481]
[1688260183810,22.47,18.825,18.813,22.484]
[1688260185499,22.47,18.825,18.813,33.32119922]
[1688260185906,22.47,18.825,18.813,10.83719922]
[1688260186107,22.47,18.825,18.804,57.912]
[1688260186309,22.47,18.825,18.809,22.488]
[1688260186495,22.47,18.825,18.81,20.0]
[1688260187514,22.47,18.825,18.81,42.487]
[1688260188515,22.47,18.825,18.811,55.0]
[1688260188699,22.47,18.825,18.812,20.0]
[1688260190112,22.47,18.825,18.814,22.482]
[1688260190413,22.47,18.825,18.812,20.0]
[1688260192308,27.60887453,18.824,18.807,22.488]
[1688260192513,27.60887453,18.824,18.807,22.49]
[1688260192514,185.929,18.819,18.807,22.49]
[1688260192813,94.6927,18.818,18.807,22.49]
[1688260193122,22.482,18.815,18.807,22.49]
[1688260193707,22.482,18.815,18.808,55.0]
[1688260194820,22.482,18.815,18.808,88.32619922]
[1688260197821,22.482,18.815,18.806,22.492]
[1688260197822,80.361,18.815,18.806,22.492]
[1688260198024,80.361,18.815,18.803,48.99202844]
[1688260198432,80.361,18.815,18.803,59.82922766]
[1688260200215,80.361,18.815,18.804,22.494]
[1688260200515,80.361,18.815,18.803,22.496]
[1688260200516,98.098,18.814,18.803,22.496]
[1688260200830,22.487,18.811,18.806,22.492]
[1688260201214,22.487,18.811,18.805,22.493]
[1688260201419,22.487,18.811,18.806,55.0]
[1688260201612,22.487,18.811,18.805,55.0]